Cogmind - Beta 10.2 @@@ ROGUE MODE // 2021.01.08 @ 18:28:58 Player: Ben'n'Dan Result: Destroyed by S-27 Virus with Autogun Performance ------------- Evolutions (3) 1500 Regions Visited (4) 800 Robots Destroyed (4) 20 Value Destroyed (108) 108 Prototype IDs (0) 0 Alien Tech Used (0) 0 Bonus (834) 834 TOTAL SCORE: 3262 Bonus ------- Pacifist 834 Cogmind --------- Core Integrity 0/700 Matter 265/300 Energy 100/100 System Corruption 0% Temperature Cool (0) Movement Core (50) Location -7/Factory Parts ------- > --- POWER (3) -------- (None) > --- PROPULSION (5) --- (None) > --- UTILITY (3) ------ Enhanced Optical Array > --- WEAPON (2) ------- Scythe > --- INVENTORY (4) ---- Light Ion Engine Great Axe Peak State ------------ > --- POWER ------------ (None) > --- PROPULSION ------- (None) > --- UTILITY ---------- Enhanced Optical Array > --- WEAPON ----------- Scythe > --- INVENTORY -------- Light Ion Engine Great Axe [Rating: 7] Favorites ----------- Power Light Ion Engine Engine Light Ion Engine Propulsion VTOL Module Flight Unit VTOL Module Utility Enhanced Optical Array Processor Enhanced Optical Array Weapon Small Laser Energy Gun Small Laser Impact Weapon Power Maul Slashing Weapon Scythe Build | -11 -10 -9 -8 -7 ------- Run | Scr Mat Mat Mat Fac Slots Evolved 6 | . . 2 2 2 Power 2 | . . 1 . 1 Propulsion 3 | . . 1 1 1 Utility 1 | . . . 1 . Weapon . | . . . . . Parts Attached 8 | 2 . . 3 3 Power 1 | . . . 1 . Engine 1 | . . . 1 . Core . | . . . . . Reactor . | . . . . . Propulsion 1 | . . . 1 . Treads . | . . . . . Leg . | . . . . . Wheel . | . . . . . Hover . | . . . . . Flight 1 | . . . 1 . Utility 1 | . . . . 1 Device . | . . . . . Storage . | . . . . . Processor 1 | . . . . 1 Hackware . | . . . . . Protection . | . . . . . Artifact . | . . . . . Weapon 5 | 2 . . 1 2 Energy Gun 3 | 2 . . 1 . Energy Cannon . | . . . . . Ballistic Gun . | . . . . . Ballistic Cannon . | . . . . . Launcher . | . . . . . Special Weapon . | . . . . . Impact Weapon 1 | . . . . 1 Slashing Weapon 1 | . . . . 1 Piercing Weapon . | . . . . . Special Melee Weapon . | . . . . . Unidentified Prototypes . | . . . . . Parts Lost 6 | . . 2 . 4 Power 1 | . . . . 1 Propulsion 1 | . . . . 1 Utility . | . . . . . Weapon 4 | . . 2 . 2 Highest Loss Streak 4 | . . 2 . 4 Average Slot Usage (%) 16 | . 28 17 25 11 Engine 2 | . . . 9 1 Flight 2 | . . . 8 1 Energy Gun 7 | . 28 17 8 1 Slashing Weapon 1 | . . . . 3 Naked Turns 57 | . . 13 1 43 Heaviest Build 7 | 3 3 3 4 7 Greatest Support 5 | 3 3 3 5 5 Greatest Overweight (x) 2 | . . . . 2 Average Overweight (x) . | . . . . . Largest Inventory Capacity 4 | 4 4 4 4 4 Average Capacity 4 | 4 4 4 4 4 Most Carried 2 | 2 2 2 2 2 Average Carried 1 | 1 2 2 1 1 Final Capacity 4 | 4 4 4 4 4 Final Carried 2 | 2 2 2 1 2 Class Distribution -------------------- 100% | Mutant Dominant Class ---------------- Mutant | -10/Materials Mutant | -9/Materials Mutant | -8/Materials Mutant | -7/Factory Resources | -11 -10 -9 -8 -7 ----------- Run | Scr Mat Mat Mat Fac Matter Collected 198 | 168 . . . 30 Remotely . | . . . . . Salvage Created 108 | . . . . 108 Parts 3 | . . . . 3 Haulers Intercepted . | . . . . . Recyclers Shooed . | . . . . . Parts Field Recycled . | . . . . . Retrieved Matter . | . . . . . Parts Self-Destructed . | . . . . . Prevented . | . . . . . Kills | -11 -10 -9 -8 -7 ------- Run | Scr Mat Mat Mat Fac Combat Hostiles Destroyed 4 | . . . . 4 Melee 4 | . . . . 4 Classes Destroyed 1 | . . . . 1 Swarmer 4 | . . . . 4 Best Kill Streak 2 | . . . . 2 Combat Bots Only 2 | . . . . 2 Max Kills in Single Turn 1 | . . . . 1 Gunslinging . | . . . . . Exploded . | . . . . . Melee 1 | . . . . 1 Uniques/NPCs Destroyed . | . . . . . Combat | -11 -10 -9 -8 -7 -------- Run | Scr Mat Mat Mat Fac Damage Taken 1307 | . . 344 104 859 Core 1012 | . . 250 56 706 Absorbed by Shields . | . . . . . Core Remaining (%) 81 | 100 100 37 89 . Volleys Fired . | . . . . . Largest . | . . . . . Hottest . | . . . . . Shots Fired . | . . . . . Gun . | . . . . . Cannon . | . . . . . Launcher . | . . . . . Special . | . . . . . Kinetic . | . . . . . Thermal . | . . . . . Explosive . | . . . . . Electromagnetic . | . . . . . Robot Hit Streak . | . . . . . Robot Miss Streak . | . . . . . Penetration Max . | . . . . . Secondary Targets . | . . . . . Shots Hit Robots 10 | . . . . 10 Core Hits 7 | . . 1 . 6 Critical Hits . | . . . . . Critical Kills . | . . . . . Critical Parts Destroyed . | . . . . . Melee Attacks 22 | . . . . 22 Impact 14 | . . . . 14 Slashing 8 | . . . . 8 Piercing . | . . . . . Sneak Attacks . | . . . . . Combat Hostiles . | . . . . . Follow-up Attacks . | . . . . . Damage Inflicted 359 | . . 18 . 341 Guns . | . . . . . Cannons . | . . . . . Explosions . | . . . . . Melee 335 | . . . . 335 Ramming 24 | . . 18 . 6 Kinetic . | . . . . . Thermal . | . . . . . Explosive . | . . . . . Electromagnetic . | . . . . . Impact 244 | . . . . 244 Slashing 91 | . . . . 91 Piercing . | . . . . . Highest Corruption . | . . . . . Average Corruption . | . . . . . Corruption Purged . | . . . . . Overload Shots . | . . . . . Overflow Damage 39 | . . . . 39 Projectiles . | . . . . . Explosions . | . . . . . Melee 39 | . . . . 39 Knockbacks . | . . . . . Impact . | . . . . . Kinetic . | . . . . . Secondary . | . . . . . Self-Inflicted Damage 11 | . . 9 . 2 Shots . | . . . . . Rammed 5 | . . 2 . 3 Targets Rammed 5 | . . 2 . 3 Kicked . | . . . . . Crushed . | . . . . . Highest Temperature . | . . . . . Average Temperature . | . . . . . Received Heat Transfer 237 | . . 102 36 99 Siege Activations . | . . . . . Robots Corrupted . | . . . . . Combat Hostiles . | . . . . . Parts Fried . | . . . . . Impact Corruptions 2 | . . . . 2 Robots Melted . | . . . . . Combat Hostiles . | . . . . . Parts Melted . | . . . . . Heat Transferred . | . . . . . Parts Sabotaged . | . . . . . Parts Stolen . | . . . . . Parts Stripped . | . . . . . Power Chain Reactions . | . . . . . Missiles Intercepted . | . . . . . Alert | -11 -10 -9 -8 -7 ------- Run | Scr Mat Mat Mat Fac Peak Influence 197 | . . 45 89 197 Initial 39 | . . . 16 39 Average 75 | . . 20 45 119 Maximum Alert Level . | . . . . . Low Security (%) 100 | 100 100 100 100 100 Level 1 . | . . . . . Level 2 . | . . . . . Level 3 . | . . . . . Level 4 . | . . . . . Level 5 . | . . . . . High Security . | . . . . . Max Security . | . . . . . Squads Dispatched 5 | . 1 1 2 1 Investigation 3 | . . 1 1 1 Extermination . | . . . . . Reinforcement 2 | . 1 . 1 . Assault . | . . . . . Garrison . | . . . . . Intercept . | . . . . . Construction Impeded . | . . . . . Haulers Reinforced . | . . . . . Stealth | -11 -10 -9 -8 -7 --------- Run | Scr Mat Mat Mat Fac Distress Signals . | . . . . . Communications Jammed . | . . . . . Distress Signals . | . . . . . Times Spotted 27 | . 1 11 5 10 Peak Tracking Total 11 | . 1 11 6 4 Tactical Retreats 4 | . . 1 . 3 Traps | -11 -10 -9 -8 -7 ------- Run | Scr Mat Mat Mat Fac Traps Triggered 1 | . . 1 . . Indirectly . | . . . . . Trap Hack Attempts . | . . . . . Triggered . | . . . . . Disarmed . | . . . . . Reprogrammed . | . . . . . Reused . | . . . . . Traps Extracted . | . . . . . Installed . | . . . . . Triggered . | . . . . . Machines | -11 -10 -9 -8 -7 ---------- Run | Scr Mat Mat Mat Fac Machines Disabled . | . . . . . Max in Single Turn . | . . . . . Machines Sabotaged . | . . . . . Garrisons Compromised . | . . . . . Overloaded Fab Kills . | . . . . . Fab Network Shutdowns . | . . . . . Hacking | -11 -10 -9 -8 -7 --------- Run | Scr Mat Mat Mat Fac Machines Accessed 5 | . . . 2 3 Terminals 5 | . . . 2 3 Fabricators . | . . . . . Repair Stations . | . . . . . Recycling Units . | . . . . . Scanalyzers . | . . . . . Garrison Access . | . . . . . Total Hacks 13 | . . . 6 7 Successful 5 | . . . 2 3 Failed 8 | . . . 4 4 Catastrophic 4 | . . . 2 2 Database Lockouts . | . . . . . Manual 8 | . . . 2 6 Terminals 13 | . . . 6 7 Fabricators . | . . . . . Repair Stations . | . . . . . Recycling Units . | . . . . . Scanalyzers . | . . . . . Garrison Access . | . . . . . Terminal Hacks 5 | . . . 2 3 Level Access Points 1 | . . . 1 . Emergency Access Points 1 | . . . . 1 Locate Traps 1 | . . . . 1 Zone Layout 2 | . . . 1 1 Fabricator Hacks . | . . . . . Repair Station Hacks . | . . . . . Recycling Unit Hacks . | . . . . . Scanalyzer . | . . . . . Garrison Access Hacks . | . . . . . Unauthorized Hacks . | . . . . . Terminals . | . . . . . Fabricators . | . . . . . Repair Stations . | . . . . . Recycling Units . | . . . . . Scanalyzers . | . . . . . Garrison Access . | . . . . . Data Cores Recovered . | . . . . . Used . | . . . . . Hacking Detections 5 | . . . 2 3 Full Trace Events 2 | . . . 1 1 Feedback Events . | . . . . . Feedback Blocked . | . . . . . Robot Schematics Acquired . | . . . . . Robots Built . | . . . . . Matter . | . . . . . Time . | . . . . . Total Robot Build Rating . | . . . . . Part Schematics Acquired . | . . . . . Parts Built . | . . . . . Matter . | . . . . . Time . | . . . . . Total Part Build Rating . | . . . . . Parts Repaired . | . . . . . Time . | . . . . . Parts Recycled . | . . . . . Recycled Matter . | . . . . . Retrieved Matter . | . . . . . Retrieved Components . | . . . . . Parts Scanalyzed . | . . . . . Part Schematics Acquired . | . . . . . Parts Damaged . | . . . . . Bothacking | -11 -10 -9 -8 -7 ------------ Run | Scr Mat Mat Mat Fac Used RIF Installer . | . . . . . Robots Hacked . | . . . . . Non-combat . | . . . . . Combat . | . . . . . Robot Hacks Applied . | . . . . . Relay Couplers Released . | . . . . . Robots Rewired . | . . . . . Allies Hacked . | . . . . . Hacks Repelled . | . . . . . Allies | -11 -10 -9 -8 -7 -------- Run | Scr Mat Mat Mat Fac Total Allies . | . . . . . Largest Group . | . . . . . Highest-Rated Group . | . . . . . Highest-Rated Ally . | . . . . . Total Orders . | . . . . . Ally Attacks . | . . . . . Total Damage . | . . . . . Kills . | . . . . . Allies Corrupted . | . . . . . Allies Melted . | . . . . . Intel | -11 -10 -9 -8 -7 ------- Run | Scr Mat Mat Mat Fac Robot Analysis Total . | . . . . . Derelict Logs Recovered . | . . . . . Drone Launches . | . . . . . Drone Recoveries . | . . . . . Exploration | -11 -10 -9 -8 -7 ------------- Run | Scr Mat Mat Mat Fac Turns Passed 490 | 22 36 74 97 261 Spaces Moved 877 | 33 72 140 227 405 Core 544 | 33 72 140 22 277 Treads . | . . . . . Legs . | . . . . . Wheels . | . . . . . Hover . | . . . . . Flight 333 | . . . 205 128 Fastest Speed 40 | 50 50 50 40 40 Average Speed 46 | 50 50 50 40 47 Slowest Speed 150 | 50 50 50 50 150 Overloaded Moves . | . . . . . Propulsion Burnouts . | . . . . . Robots Hopped 1 | . . . . 1 Cave-ins Triggered . | . . . . . Exploration Rate (%) 20 | 2 26 29 30 14 Regions Visited 4 Branch Regions . Pre-discovered Areas . | . . . . . Known Exits Taken 1 | . . . 1 . Unknown Exits Taken 3 | 1 1 1 . . Scrap Searched . | . . . . . Spaces Dug . | . . . . . Terrain Destroyed . | . . . . . Melee . | . . . . . Projectile . | . . . . . AOE . | . . . . . Terrain Rammed . | . . . . . Walls Destroyed . | . . . . . Machines Disabled . | . . . . . Actions | -11 -10 -9 -8 -7 --------- Run | Scr Mat Mat Mat Fac Total 917 | 36 71 143 229 438 Wait 7 | . . 2 . 5 Move 871 | 32 71 139 226 403 Hop 1 | . . . . 1 Pick Up 3 | 2 . . . 1 Fast Attach 7 | 2 . . 2 3 Attach 1 | . . . 1 . Detach . | . . . . . Swap . | . . . . . Drop . | . . . . . Fire . | . . . . . Melee 22 | . . . . 22 Ram 5 | . . 2 . 3 Kick . | . . . . . Crush . | . . . . . Escape Stasis . | . . . . . Rewire . | . . . . . Trap . | . . . . . Miscellaneous . | . . . . . Route ------- -11/Scrapyard -10/Materials -9/Materials (discovered 2 exits: *Mat / [*Min]) -8/Materials (discovered 3 exits: *Fac x3) -7/Factory History --------- Turn | Location | Event 7 | -11/Scrapyard | Discovered new exit (range 15) 23 | -11/Scrapyard | Entered Materials 52 | -10/Materials | Discovered new exit (range 15) 59 | -10/Materials | Entered another Materials area 59 | -9/Materials | Evolved 2 slots: Power x1, Propulsion x1 90 | -9/Materials | Discovered new exit (range 16) 127 | -9/Materials | Discovered new exit (range 14) 132 | -9/Materials | Core integrity fell below 50% 133 | -9/Materials | Entered another Materials area 133 | -8/Materials | Evolved 2 slots: Propulsion x1, Utility x1 207 | -8/Materials | Identified exit to Factory 230 | -8/Materials | Entered Factory 230 | -7/Factory | Evolved 2 slots: Power x1, Propulsion x1 310 | -7/Factory | Build established: Mutant 321 | -7/Factory | Core integrity fell below 50% 356 | -7/Factory | Lost 4 parts (1p1n2w) 438 | -7/Factory | Core integrity fell below 20% 491 | -7/Factory | Destroyed by S-27 Virus with Autogun Last Messages --------------- 00322_ S-27 Virus destroyed. 00325_ Power Maul destroyed. 00327_ Slammed into S-27 Virus. 00327_ S-27 Virus destroyed. 00328_ Acquired 30 matter. 00328_ Slammed into S-27 Virus. 00345_ K-01 Serf cleans the Neutrino Reactor. 00368_ Acquired Scythe. 00370_ Acquired Great Axe. 00436_ Acquired Enh. Optical Array. 00463_ Connecting with Terminal... >>Layout(Zone) Retrieving Zone 7H layout... Downloaded map data. 00463_ Connecting with Terminal... 00463_ ALERT: Suspicious activity at Terminal F017. Dispatching Investigation squad. 00472_ S-27 Virus destroyed. 00485_ Destroyed VTOL Module. 00487_ S-27 Virus destroyed. Map ----- +----------------------------------------------------+ | ###/######+#####+# ### # | | + # | | # !# | | + # | | # # | | # # | | ###+################ # # | | #?# #=== # # # | | #?# #=== + + # | | #?# #== # ############## | | #?# ######### #????????????? | | #?# #??????## ##???????????? | | #?# ######## ##########??? | | #?# + T #??? | | ??# ######## #??? | | ??# #??????#### #??? | | ??##+#######??????# #??? | | ?????#????????????# #####??? | | ?????#????????????# #??????? | | ?????############## #??????? | | ????? ###????? | | ???? #????? | | ????? #????? | | ????? = #????? | | ?????######+####### ##s#+#####? | | ??????# ########@%% #? | | ??????# #??????# """ #? | | ??????# """ """ #??????# """ #? | | ??????# """ """ #??????# """ #? | | ????????????????????????# #? | | ????????????????????????# """ #? | | ????????????????????????# """ #? | | ????????????????????????# """ #? | | ????????????????????????# #? | | ????????????????????????##########? | | ??????????????????????????????????? | | ??????????????????????????????????? | | ??????????????????????????????????? | | ??????????????????????????????????? | | ??????????????????????????????????? | | ??????????????????????????????????? | | ??????????????????????????????????? | | ??????????????????????????????????? | | ??????????????????????????????????? | | ??????????????????????????????????? | | ??????????????????????????????????? | | ??????????????????????????????????? | | ??????????????????????????????????? | | ??????????????????????????????????? | | ??????????????????????????????????? | +----------------------------------------------------+ Best States ------------- Heat Dissipation 34 Energy Generation 10 Energy Capacity 125 Matter Stores 285 Matter Capacity 300 Sight Range 22 Terrain Scan Density 10 Evasion (%) 62 Item Schematics ----------------- None Robot Schematics ------------------ None Fabricated ------------ Nothing Alien Tech Used ----------------- None Achievements -------------- None Challenges ------------ None Game ------ Seed BoreFrostAutogun Manual? 0 Play Time 00:10:12 Cumulative 129.4 hours Start 2021.01.08 @ 18:22:04 End 2021.01.08 @ 18:28:58 Sessions 1 Manual Loads 0 Difficulty Rogue Special Mode None Game No. 325 Rogue 317 Adventurer 8 Explorer 0 Win Type - Total 9 Types 6/0/2/1/0/0/0/0/0 Lore% 76 Gallery% 79 Achievement% 59 Wizard Run 0 Options --------- ASCII 0 Keyboard 0 Movement Numpad Keybinds 0 Fullscreen 1 Font 18/SmallcapsGlow Map View 76x50 Tactical HUD 1 Map Filters NONE Filters NONE Steam 1 RUN: 2e514ebb-9b12-4d1f-818d-084298cb43e1